lending/lending_fUSD_20250917
["ID","MTS","AMOUNT","RATE_DAILY","PERIOD"]
[385922935,1758135051877,-441.51117987,0.00024189,2]
[385922936,1758135051887,-400.0,0.00024189,2]
[385922937,1758135051896,-400.0,0.00024189,2]
[385922938,1758135051906,-348.95400292,0.00024189,2]
[385922939,1758135051916,-400.0,0.00024189,2]
[385922940,1758135051926,-400.0,0.00024189,2]
[385922941,1758135051936,-526.83,0.00024189,2]
[385922942,1758135051946,-433.04,0.00024189,2]
[385922943,1758135051955,-400.0,0.00024189,2]
[385922944,1758135051965,-400.0,0.00024189,2]
[385922945,1758135051975,-400.0,0.00024189,2]
[385922946,1758135051984,-400.0,0.00024189,2]
[385922947,1758135051993,-400.0,0.00024189,2]
[385922948,1758135052003,-400.0,0.00024189,2]
[385922949,1758135052012,-400.0,0.00024189,2]
[385922950,1758135052022,-438.92,0.00024189,2]
[385922951,1758135052031,-400.0,0.00024189,2]
[385922952,1758135052040,-481.36,0.00024189,2]
[385922953,1758135052050,-400.0,0.00024189,2]
[385922954,1758135052059,-400.0,0.00024189,2]
[385922955,1758135052069,-400.0,0.00024189,2]
[385922956,1758135052079,-522.89959314,0.00024189,2]
[385922957,1758135052088,-400.0,0.00024189,2]
[385922958,1758135052097,-400.0,0.00024189,2]
[385922959,1758135052108,-400.0,0.00024189,2]
[385922960,1758135052118,-400.0,0.00024189,2]
[385922961,1758135052128,-400.0,0.00024189,2]
[385922962,1758135052138,-400.0,0.00024189,2]
[385922963,1758135052147,-400.0,0.00024189,2]
[385922964,1758135052157,-400.0,0.00024189,2]
[385922965,1758135052166,-400.0,0.00024189,2]
[385922966,1758135052175,-400.0,0.00024189,2]
[385922967,1758135052184,-400.0,0.00024189,2]
[385922968,1758135052194,-400.0,0.00024189,2]
[385922969,1758135052203,-400.0,0.00024189,2]
[385922970,1758135052212,-400.0,0.00024189,2]
[385922971,1758135052221,-400.0,0.00024189,2]
[385922972,1758135052231,-400.0,0.00024189,2]
[385922973,1758135052240,-400.0,0.00024189,2]
[385922974,1758135052249,-203.6672795,0.00024189,2]
[385922975,1758135052259,-400.0,0.00024189,2]
[385922976,1758135052268,-400.0,0.00024189,2]
[385922977,1758135052278,-400.0,0.00024189,2]
[385922978,1758135052287,-400.0,0.00024189,2]
[385922979,1758135052297,-425.32,0.00024189,2]
[385922980,1758135052306,-539.74,0.00024189,2]
[385922981,1758135052316,-400.0,0.00024189,2]
[385922982,1758135052325,-510.08,0.00024189,2]
[385922983,1758135052335,-403.25,0.00024189,2]
[385922984,1758135052345,-400.0,0.00024189,2]
[385922985,1758135052356,-400.0,0.00024189,2]
[385922986,1758135052366,-646.16,0.00024189,2]
[385922987,1758135052375,-400.0,0.00024189,2]
[385922988,1758135052384,-400.0,0.00024189,2]
[385922989,1758135052394,-400.0,0.00024189,2]
[385922990,1758135052403,-400.0,0.00024189,2]
[385922991,1758135052413,-434.35,0.00024189,2]
[385922992,1758135052422,-621.03299278,0.00024198,2]
[385922993,1758135052432,-218.27281934,0.00024211,7]
[385922994,1758135052442,-522.83,0.00024267,2]
[385922995,1758135052452,-174.37,0.00024284,2]
[385922996,1758135052462,-473.0,0.000243,2]
[385922997,1758135052472,-400.0,0.0002431,2]
[385922998,1758135052481,-400.0,0.0002431,2]
[385922999,1758135052490,-400.0,0.0002431,2]
[385923000,1758135052500,-400.0,0.0002431,2]
[385923001,1758135052509,-500.0,0.0002431,2]
[385923002,1758135052519,-217.69010538,0.0002431,2]
[385923003,1758135052548,-282.30989462,0.0002431,2]
[385923004,1758135052558,-500.0,0.0002431,2]
[385923005,1758135052653,-500.0,0.0002431,2]
[385923006,1758135052664,-500.0,0.0002431,2]
[385923007,1758135052675,-500.0,0.0002431,2]
[385923008,1758135052684,-500.0,0.0002431,2]
[385923009,1758135052695,-500.0,0.0002431,2]
[385923010,1758135052708,-500.0,0.0002431,2]
[385923011,1758135052718,-500.0,0.0002431,2]
[385923012,1758135052728,-400.0,0.0002431,2]
[385923013,1758135052737,-6868.22910538,0.0002431,2]
[385923014,1758135052767,-5671.68089462,0.0002431,2]
[385923015,1758135052777,-812.54,0.0002431,2]
[385923016,1758135052786,-771.38,0.0002431,2]
[385923017,1758135052795,-581.68,0.0002431,2]
[385923018,1758135052804,-938.97,0.0002431,2]
[385923019,1758135052813,-400.0,0.0002431,2]
[385923020,1758135052822,-1249.06,0.0002431,2]
[385923021,1758135052832,-1832.25,0.0002431,2]
[385923022,1758135052842,-500.0,0.0002431,2]
[385923023,1758135052851,-400.0,0.0002431,2]
[385923024,1758135052861,-2232.2,0.0002431,2]
[385923025,1758135052870,-839.73,0.0002431,2]
[385923026,1758135052880,-432.05,0.0002431,2]
[385923027,1758135052889,-590.38,0.0002431,2]
[385923028,1758135052899,-523.26,0.0002431,2]
[385923029,1758135052908,-400.0,0.0002431,2]
[385923030,1758135052917,-771.94,0.0002431,2]
[385923031,1758135052927,-1093.45,0.0002431,2]
[385923032,1758135052936,-490.25,0.00024311,2]
[385923033,1758135052946,-488.98,0.00024311,2]
[385923034,1758135052955,-400.0,0.00024311,2]
[385923035,1758135052965,-500.0,0.00024311,2]
[385923036,1758135052974,-400.0,0.00024311,2]
[385923037,1758135052984,-661.82,0.00024311,2]
[385923038,1758135052993,-500.0,0.00024311,2]
[385923039,1758135053002,-621.03299278,0.00024323,2]
[385923040,1758135053011,-1138.44817859,0.00024345,2]
[385923041,1758135053021,-400.0,0.00024346,2]
[385923042,1758135053030,-550.47,0.00024346,2]
[385923043,1758135053039,-88.56261459,0.00024346,2]
[385923044,1758135053051,-624.48738541,0.00024346,2]
[385923045,1758135053060,-456.34,0.00024346,2]
[385923046,1758135053070,-400.0,0.00024346,2]
[385923047,1758135053079,-467.82,0.00024346,2]
[385923048,1758135053089,-400.0,0.00024346,2]
[385923049,1758135053098,-400.0,0.00024346,2]
[385923050,1758135053109,-1637.35,0.00024346,2]
[385923051,1758135053119,-400.0,0.00024346,2]
[385923052,1758135053129,-400.0,0.00024346,2]
[385923053,1758135053138,-400.0,0.00024346,2]
[385923054,1758135053147,-400.0,0.00024346,2]
[385923055,1758135053157,-400.0,0.00024346,2]
[385923056,1758135053166,-400.0,0.00024346,2]
[385923057,1758135053175,-400.0,0.00024346,2]
[385923058,1758135053185,-400.0,0.00024346,2]
[385923059,1758135053195,-400.0,0.00024346,2]
[385923060,1758135053204,-400.0,0.00024346,2]
[385923061,1758135053213,-400.0,0.00024445,2]
[385923062,1758135053223,-400.0,0.00024445,2]
[385923063,1758135053232,-400.0,0.00024445,2]
[385923064,1758135053242,-400.0,0.00024445,2]
[385923065,1758135053251,-400.0,0.00024445,2]
[385923066,1758135053259,-400.0,0.00024445,2]
[385923067,1758135053269,-400.0,0.00024445,2]
[385923068,1758135053279,-233.94840263,0.00024445,2]
[385923069,1758135053288,-400.0,0.00024445,2]
[385923070,1758135053298,-405.92780876,0.00024445,2]
[385923071,1758135053307,-400.0,0.00024445,2]
[385923072,1758135053316,-400.0,0.00024445,2]
[385923073,1758135053325,-400.0,0.00024445,2]
[385923074,1758135053334,-400.0,0.00024445,2]
[385923075,1758135053343,-400.0,0.00024445,2]
[385923076,1758135053355,-400.0,0.00024445,2]
[385923077,1758135053364,-400.0,0.00024445,2]
[385923078,1758135053373,-400.0,0.00024445,2]
[385923079,1758135053383,-400.0,0.00024445,2]
[385923080,1758135053392,-400.0,0.00024445,2]
[385923081,1758135053401,-400.0,0.00024445,2]
[385923082,1758135053411,-400.0,0.00024445,2]
[385923083,1758135053421,-400.0,0.00024445,2]
[385923084,1758135053430,-400.0,0.00024445,2]
[385923085,1758135053439,-400.0,0.00024445,2]
[385923086,1758135053448,-400.0,0.00024445,2]
[385923087,1758135053458,-413.63866747,0.00024445,2]
[385923088,1758135053467,-400.0,0.00024445,2]
[385923089,1758135053476,-400.0,0.00024445,2]
[385923090,1758135053485,-101.30025515,0.00024445,2]
[385923091,1758135053870,-298.69974485,0.00024445,2]
[385923092,1758135053880,-400.0,0.00024445,2]
[385923093,1758135053890,-397.82138647,0.00024445,2]
[385923094,1758135053899,-400.0,0.00024445,2]
[385923095,1758135053909,-546.91718129,0.00024445,2]
[385923096,1758135053918,-400.0,0.00024445,2]
[385923097,1758135053928,-400.0,0.00024445,2]
[385923098,1758135053937,-400.0,0.00024445,2]
[385923099,1758135053947,-400.0,0.00024445,2]
[385923100,1758135053956,-400.0,0.00024445,2]
[385923101,1758135053966,-400.0,0.00024445,2]
[385923102,1758135053975,-400.0,0.00024445,2]
[385923103,1758135053984,-466.31,0.00024445,2]
[385923104,1758135053993,-270.74736779,0.00024445,2]
[385923105,1758135054003,-400.0,0.00024445,2]
[385923106,1758135054012,-400.0,0.00024445,2]
[385923107,1758135054021,-400.0,0.00024445,2]
[385923108,1758135054030,-140.2989274,0.00024445,2]
[385923109,1758135054173,-392.043774,0.00023541,2]
[385923110,1758135054600,-576.51353533,0.00023541,2]
[385923111,1758135054611,-1189.97,0.00023873,2]
[385923112,1758135054621,-441.56,0.00024172,2]
[385923113,1758135054631,-513.44380771,0.00024173,2]
[385923114,1758135054640,-1138.44817857,0.00024415,2]
[385923115,1758135054649,-259.7010726,0.00024445,2]
[385923116,1758135054658,-181.5609003,0.00024445,2]
[385923117,1758135054669,-218.4390997,0.00024445,2]
[385923118,1758135054680,-400.0,0.00024445,2]
[385923119,1758135054689,-512.03,0.00024445,2]
[385923120,1758135054702,-400.0,0.00024445,2]
[385923121,1758135054712,-400.0,0.00024445,2]
[385923122,1758135054721,-400.0,0.00024445,2]
[385923123,1758135054730,-400.0,0.00024445,2]
[385923124,1758135054740,-400.0,0.00024445,2]
[385923125,1758135054751,-481.59,0.00024445,2]
[385923126,1758135054760,-400.0,0.00024445,2]
[385923127,1758135054769,-400.0,0.00024445,2]
[385923128,1758135054778,-422.98,0.00024445,2]
[385923129,1758135054789,-400.0,0.00024445,2]
[385923130,1758135054799,-404.40792066,0.00024445,2]
[385923131,1758135054809,-400.0,0.00024445,2]
[385923132,1758135054818,-835.48,0.00024445,2]
[385923133,1758135054828,-400.0,0.00024445,2]
[385923134,1758135054837,-400.0,0.00024445,2]
[385923135,1758135054847,-400.0,0.00024445,2]
[385923136,1758135054856,-400.0,0.00024445,2]
[385923137,1758135054867,-400.0,0.00024445,2]
[385923138,1758135054876,-400.0,0.00024445,2]
[385923139,1758135054886,-400.0,0.00024445,2]
[385923140,1758135054895,-400.0,0.00024445,2]
[385923141,1758135054904,-400.0,0.00024445,2]
[385923142,1758135054914,-400.0,0.00024445,2]
[385923143,1758135054923,-400.0,0.00024445,2]
[385923144,1758135054933,-400.0,0.00024445,2]
[385923145,1758135054942,-609.0,0.00024445,2]
[385923146,1758135054952,-400.0,0.00024445,2]
[385923147,1758135054962,-400.0,0.00024445,2]
[385923148,1758135054971,-400.0,0.00024445,2]
[385923149,1758135054981,-400.0,0.00024445,2]
[385923150,1758135054990,-400.0,0.00024445,2]
[385923151,1758135054999,-400.0,0.00024445,2]
[385923152,1758135055008,-409.53715698,0.00024445,2]
[385923153,1758135055017,-400.0,0.00024445,2]
[385923154,1758135055027,-400.0,0.00024445,2]
[385923155,1758135055037,-400.0,0.00024445,2]
[385923156,1758135055046,-400.0,0.00024445,2]
[385923157,1758135055056,-400.0,0.00024445,2]
[385923158,1758135055066,-400.0,0.00024445,2]
[385923159,1758135055076,-400.0,0.00024445,2]
[385923160,1758135055086,-400.0,0.00024445,2]
[385923161,1758135055096,-400.0,0.00024445,2]
[385923162,1758135055106,-400.0,0.00024445,2]
[385923163,1758135055116,-400.0,0.00024445,2]
[385923164,1758135055126,-441.02,0.00024445,2]
[385923165,1758135055135,-183.33007589,0.00024445,2]
[385923166,1758135055144,-400.0,0.00024445,2]
[385923167,1758135055154,-641.89,0.00024445,2]
[385923168,1758135055163,-400.0,0.00024445,2]
[385923169,1758135055172,-400.0,0.00024445,2]
[385923170,1758135055181,-400.0,0.00024445,2]
[385923171,1758135055191,-400.0,0.00024445,2]
[385923172,1758135055200,-400.0,0.00024445,2]
[385923173,1758135055210,-400.0,0.00024445,2]
[385923174,1758135055219,-400.0,0.00024445,2]
[385923175,1758135055228,-400.0,0.00024445,2]
[385923176,1758135055237,-400.0,0.00024445,2]
[385923177,1758135055246,-400.0,0.00024445,2]
[385923178,1758135055256,-400.0,0.00024445,2]
[385923179,1758135055265,-400.0,0.00024445,2]
[385923180,1758135055274,-400.0,0.00024446,2]
[385923181,1758135055283,-468.29998382,0.00024446,2]
[385923182,1758135055292,-400.0,0.00024446,2]
[385923183,1758135055301,-400.0,0.00024446,2]
[385923184,1758135055311,-453.63,0.00024446,2]
[385923185,1758135055320,-400.0,0.00024446,2]
[385923186,1758135055329,-504.1,0.00024446,2]
[385923187,1758135055339,-675.27,0.00024446,2]
[385923188,1758135055348,-549.7024366,0.00024446,2]
[385923189,1758135055358,-613.63,0.00024446,2]
[385923190,1758135055368,-400.0,0.00024446,2]
[385923191,1758135055377,-535.52,0.00024446,2]
[385923192,1758135055386,-773.55,0.00024446,2]
[385923193,1758135055395,-439.66,0.00024446,2]
[385923194,1758135055404,-400.0,0.00024446,2]
[385923195,1758135055414,-400.0,0.00024446,2]
[385923196,1758135055423,-400.0,0.00024446,2]
[385923197,1758135055433,-637.26,0.00024446,2]
[385923198,1758135055442,-400.0,0.00024446,2]
[385923199,1758135055452,-519.52,0.00024446,2]
[385923200,1758135055462,-468.34,0.00024446,2]
[385923201,1758135055472,-400.0,0.00024446,2]
[385923202,1758135055481,-400.0,0.00024446,2]
[385923203,1758135055491,-400.0,0.00024446,2]
[385923204,1758135055501,-400.0,0.00024446,2]
[385923205,1758135055510,-418.18,0.00024446,2]
[385923206,1758135055520,-413.3090985,0.00024446,2]
[385923207,1758135055530,-542.15,0.00024446,2]
[385923208,1758135055540,-400.0,0.00024446,2]
[385923209,1758135055549,-400.0,0.00024446,2]
[385923210,1758135055559,-400.0,0.00024446,2]
[385923211,1758135055568,-400.0,0.00024446,2]
[385923212,1758135055578,-593.79,0.00024446,2]
[385923213,1758135055588,-400.0,0.00024446,2]
[385923214,1758135055598,-400.0,0.00024446,2]
[385923215,1758135055607,-400.0,0.00024446,2]
[385923216,1758135055616,-400.0,0.00024446,2]
[385923217,1758135055626,-459.41597118,0.00024446,2]
[385923218,1758135055636,-501.63,0.00024446,2]
[385923219,1758135055645,-400.0,0.00024446,2]
[385923220,1758135055654,-400.0,0.00024446,2]
[385923221,1758135055663,-400.0,0.00024446,2]
[385923222,1758135055671,-400.0,0.00024446,2]
[385923223,1758135055680,-772.69,0.00024446,2]
[385923224,1758135055690,-400.0,0.00024446,2]
[385923225,1758135055699,-476.26,0.00024446,2]
[385923226,1758135055709,-400.0,0.00024446,2]
[385923227,1758135055721,-400.0,0.00024446,2]
[385923228,1758135055731,-400.0,0.00024446,2]
[385923229,1758135055740,-400.0,0.00024446,2]
[385923230,1758135055750,-400.0,0.00024446,2]
[385923231,1758135055760,-400.0,0.00024446,2]
[385923232,1758135055770,-400.0,0.00024446,2]
[385923233,1758135055780,-400.0,0.00024446,2]
[385923234,1758135055789,-400.0,0.00024446,2]
[385923235,1758135055800,-322.02273222,0.00024446,2]
[385923236,1758135055809,-400.0,0.00024446,2]
[385923237,1758135055818,-400.98,0.00024446,2]
[385923238,1758135055827,-1050.71,0.00024446,2]
[385923239,1758135055837,-400.0,0.00024446,2]
[385923240,1758135055846,-467.09,0.00024446,2]
[385923241,1758135055859,-400.0,0.00024446,2]
[385923242,1758135055868,-426.43,0.00024446,2]
[385923243,1758135055878,-400.0,0.00024446,2]
[385923244,1758135055887,-400.0,0.00024446,2]
[385923245,1758135055897,-400.0,0.00024446,2]
[385923246,1758135055906,-400.0,0.00024446,2]
[385923247,1758135055915,-400.0,0.00024446,2]
[385923248,1758135055925,-400.0,0.00024446,2]
[385923249,1758135055934,-400.0,0.00024446,2]
[385923250,1758135055944,-400.0,0.00024446,2]
[385923251,1758135055953,-1022.726765,0.00024446,2]
[385923252,1758135055962,-400.0,0.00024446,2]
[385923253,1758135055972,-1610.793374,0.00024446,2]
[385923254,1758135055981,-400.0,0.00024446,2]
[385923255,1758135055991,-451.22,0.00024446,2]
[385923256,1758135056000,-400.0,0.00024446,2]
[385923257,1758135056010,-400.0,0.00024446,2]
[385923258,1758135056019,-401.76,0.00024446,2]
[385923259,1758135056028,-552.52726845,0.00024446,2]
[385923260,1758135056038,-485.25,0.00024446,2]
[385923261,1758135056047,-400.0,0.00024446,2]
[385923262,1758135056058,-400.0,0.00024446,2]
[385923263,1758135056068,-520.5,0.00024446,2]
[385923264,1758135056078,-400.0,0.00024446,2]
[385923265,1758135056088,-400.0,0.00024446,2]
[385923266,1758135056098,-500.0,0.00024446,2]
[385923267,1758135056108,-400.0,0.00024446,2]
[385923268,1758135056118,-400.0,0.00024446,2]
[385923269,1758135056127,-608.51,0.00024446,2]
[385923270,1758135056135,-442.05,0.00024446,2]
[385923271,1758135056143,-1630.26,0.00024446,2]
[385923272,1758135056152,-408.56,0.00024446,2]
[385923273,1758135056162,-400.0,0.00024446,2]
[385923274,1758135056172,-400.0,0.00024446,2]
[385923275,1758135056181,-400.0,0.00024446,2]
[385923276,1758135056191,-483.43,0.00024446,2]
[385923277,1758135056201,-400.0,0.00024446,2]
[385923278,1758135056211,-451.3,0.00024446,2]
[385923279,1758135056220,-400.0,0.00024446,2]
[385923280,1758135056231,-400.0,0.00024446,2]
[385923281,1758135056241,-526.79,0.00024446,2]
[385923282,1758135056252,-400.0,0.00024446,2]
[385923283,1758135056263,-400.0,0.00024446,2]
[385923284,1758135056273,-400.0,0.00024446,2]
[385923285,1758135056283,-430.08,0.00024446,2]
[385923286,1758135056293,-400.0,0.00024446,2]
[385923287,1758135056303,-529.18,0.00024446,2]
[385923288,1758135056313,-1064.47,0.00024446,2]
[385923289,1758135056323,-839.96,0.00024446,2]
[385923290,1758135056332,-500.0,0.00024446,2]
[385923291,1758135056342,-400.0,0.00024446,2]
[385923292,1758135056352,-444.37,0.00024446,2]
[385923293,1758135056362,-422.36,0.00024446,2]
[385923294,1758135056372,-400.0,0.00024446,2]
[385923295,1758135056382,-622.52,0.00024446,2]
[385923296,1758135056392,-500.0,0.00024446,2]
[385923297,1758135056402,-445.82,0.00024446,2]
[385923298,1758135056411,-585.02,0.00024446,2]
[385923299,1758135056421,-493.94,0.00024446,2]
[385923300,1758135056432,-1182.17,0.00024446,2]
[385923301,1758135056441,-438.21,0.00024446,2]
[385923302,1758135056451,-400.0,0.00024446,2]
[385923303,1758135056462,-500.18,0.00024446,2]
[385923304,1758135056471,-517.11,0.00024446,2]
[385923305,1758135056482,-500.0,0.00024446,2]
[385923306,1758135056491,-807.95,0.00024446,2]
[385923307,1758135056501,-797.39,0.00024446,2]
[385923308,1758135056511,-1074.46,0.00024446,2]
[385923309,1758135056520,-458.34,0.00024446,2]
[385923310,1758135056530,-400.0,0.00024446,2]
[385923311,1758135056540,-637.07,0.00024446,2]
[385923312,1758135056549,-432.49115277,0.00024446,2]
[385923313,1758135056558,-663.09,0.00024446,2]
[385923314,1758135056568,-551.6,0.00024446,2]
[385923315,1758135056578,-410.25393167,0.00024446,2]
[385923316,1758135056588,-953.2,0.00024446,2]
[385923317,1758135056598,-595.17,0.00024446,2]
[385923318,1758135056609,-400.0,0.00024446,2]
[385923319,1758135056618,-400.0,0.00024446,2]
[385923320,1758135056628,-410.4,0.00024446,2]
[385923321,1758135056637,-459.79,0.00024446,2]
[385923322,1758135056647,-404.81,0.00024446,2]
[385923323,1758135056657,-535.43,0.00024446,2]
[385923324,1758135056667,-400.0,0.00024446,2]
[385923325,1758135056676,-407.97,0.00024446,2]
[385923326,1758135056687,-884.14,0.00024446,2]
[385923327,1758135056697,-441.56,0.00024446,2]
[385923328,1758135056709,-400.0,0.00024447,2]
[385923329,1758135056720,-169.37528116,0.00024447,2]
[385923330,1758135056730,-350.05314157,0.00024447,2]
[385923331,1758135056740,-400.0,0.00024447,2]
[385923332,1758135056750,-400.0,0.00024447,2]
[385923333,1758135056759,-400.0,0.00024447,2]
[385923334,1758135056769,-400.0,0.00024447,2]
[385923335,1758135056779,-400.0,0.00024447,2]
[385923336,1758135056788,-400.0,0.00024447,2]
[385923337,1758135056799,-400.0,0.00024447,2]
[385923338,1758135056809,-400.0,0.00024447,2]
[385923339,1758135056818,-400.0,0.00024447,2]
[385923340,1758135056828,-400.0,0.00024447,2]
[385923341,1758135056838,-400.0,0.00024447,2]
[385923342,1758135056847,-410.24,0.00024447,2]
[385923343,1758135056858,-472.64,0.00024447,2]
[385923344,1758135056868,-400.0,0.00024447,2]
[385923345,1758135056878,-400.0,0.00024447,2]
[385923346,1758135056888,-400.0,0.00024447,2]
[385923347,1758135056898,-400.0,0.00024447,2]
[385923348,1758135056907,-400.0,0.00024447,2]
[385923349,1758135056917,-400.0,0.00024447,2]
[385923350,1758135056927,-400.0,0.00024447,2]
[385923351,1758135056937,-400.0,0.00024447,2]
[385923352,1758135056948,-545.70348066,0.00024447,2]
[385923353,1758135056958,-400.0,0.00024447,2]
[385923354,1758135056967,-400.0,0.00024447,2]
[385923355,1758135056977,-479.084334,0.00024447,2]
[385923356,1758135056986,-400.0,0.00024447,2]
[385923357,1758135056996,-400.0,0.00024447,2]
[385923358,1758135057006,-400.0,0.00024447,2]
[385923359,1758135057015,-400.0,0.00024447,2]
[385923360,1758135057025,-196.78338206,0.00024447,2]
[385923361,1758135057036,-415.39,0.00024447,2]
[385923362,1758135057046,-400.0,0.00024447,2]
[385923363,1758135057057,-633.11,0.00024447,2]
[385923364,1758135057067,-400.0,0.00024447,2]
[385923365,1758135057078,-400.0,0.00024447,2]
[385923366,1758135057088,-400.0,0.00024447,2]
[385923367,1758135057098,-400.0,0.00024447,2]
[385923368,1758135057109,-400.0,0.00024447,2]
[385923369,1758135057119,-400.0,0.00024447,2]
[385923370,1758135057129,-400.0,0.00024447,2]
[385923371,1758135057139,-400.0,0.00024447,2]
[385923372,1758135057149,-811.37,0.00024447,2]
[385923373,1758135057158,-234.14646947,0.00024447,2]
[385923374,1758135057168,-400.0,0.00024447,2]
[385923375,1758135057177,-564.35,0.00024447,2]
[385923376,1758135057187,-400.0,0.00024447,2]
[385923377,1758135057197,-435.33,0.00024447,2]
[385923378,1758135057208,-407.6,0.00024447,2]
[385923379,1758135057217,-2771.71,0.00024447,2]
[385923380,1758135057227,-400.0,0.00024447,2]
[385923381,1758135057237,-400.0,0.00024447,2]
[385923382,1758135057246,-531.66,0.00024447,2]
[385923383,1758135057256,-400.0,0.00024447,2]
[385923384,1758135057266,-400.0,0.00024447,2]
[385923385,1758135057276,-1303.38,0.00024447,2]
[385923386,1758135057285,-400.0,0.00024447,2]
[385923387,1758135057295,-400.0,0.00024447,2]
[385923388,1758135057306,-400.0,0.00024447,2]
[385923389,1758135057316,-400.0,0.00024447,2]
[385923390,1758135057325,-400.0,0.00024447,2]
[385923391,1758135057335,-411.18,0.00024447,2]
[385923392,1758135057344,-400.0,0.00024447,2]
[385923393,1758135057354,-400.0,0.00024447,2]
[385923394,1758135057367,-400.0,0.00024447,2]
[385923395,1758135057376,-400.0,0.00024447,2]
[385923396,1758135057386,-400.0,0.00024447,2]
[385923397,1758135057396,-400.0,0.00024447,2]
[385923398,1758135057406,-400.0,0.00024447,2]
[385923399,1758135057416,-400.0,0.00024447,2]
[385923400,1758135057425,-400.0,0.00024447,2]
[385923401,1758135057435,-400.0,0.00024447,2]
[385923402,1758135057445,-400.0,0.00024447,2]
[385923403,1758135057455,-400.0,0.00024447,2]
[385923404,1758135057466,-600.23,0.00024447,2]
[385923405,1758135057475,-400.0,0.00024447,2]
[385923406,1758135057485,-402.06707772,0.00024447,2]
[385923407,1758135057496,-390.05841246,0.00024447,2]
[385923408,1758135057515,-52.48158754,0.00024447,2]
[385923409,1758135057525,-400.0,0.00024447,2]
[385923410,1758135057535,-400.0,0.00024447,2]
[385923411,1758135057545,-279.5184124,0.00024447,2]
[385923412,1758135057557,-120.4815876,0.00024447,2]
[385923413,1758135057568,-139.62839226,0.00024447,2]
[385923414,1758135057580,-260.37160774,0.00024447,2]
[385923415,1758135057590,-400.0,0.00024447,2]
[385923416,1758135057600,-400.0,0.00024447,2]
[385923417,1758135057610,-400.0,0.00024447,2]
[385923418,1758135057620,-400.0,0.00024447,2]
[385923419,1758135057630,-400.0,0.00024447,2]
[385923420,1758135057639,-283.16779642,0.00024447,2]
[385923421,1758135058784,-400.0,0.00024173,2]
[385923422,1758135058794,-213.69220358,0.00024447,2]
[385923423,1758135058804,-400.0,0.00024447,2]
[385923424,1758135058813,-400.0,0.00024447,2]
[385923425,1758135058823,-400.0,0.00024447,2]
[385923426,1758135058833,-400.0,0.00024447,2]
[385923427,1758135058842,-84.50779642,0.00024447,2]
[385923428,1758135058858,-968.55730925,0.00023752,2]
[385923429,1758135058869,-315.49220358,0.00024447,2]
[385923430,1758135058879,-400.0,0.00024447,2]
[385923431,1758135058888,-400.0,0.00024447,2]
[385923432,1758135058897,-400.0,0.00024447,2]
[385923433,1758135058907,-400.0,0.00024447,2]
[385923434,1758135058917,-400.0,0.00024447,2]